[Event "November 21 Early 2023"]
[Site "https://www.chess.com"]
[Date "2023.11.21"]
[Round "4"]
[White "Rohith Krishna S"]
[Black "Starozhilov, Leonid"]
[Result "1-0"]
[Board "31"]
[TimeControl "180+1"]
[WhiteFideId "46617051"]
[BlackFideId "14106752"]
[WhiteElo "2394"]
[BlackElo "2270"]
[WhiteTeam "IND"]
[BlackTeam "UKR"]
[WhiteClock "0:01:13"]
[BlackClock "0:00:11"]

1. e4 {[%clk 0:03:00]}  c6 {[%clk 0:02:55]} 2. d4 {[%clk 0:02:57]}  d5 {[%clk 0:02:56]} 3. Nc3 {[%clk 0:02:56]}  dxe4 {[%clk 0:02:56]} 4. Nxe4 {[%clk 0:02:57]}  Nf6 {[%clk 0:02:57]} 5. Ng3 {[%clk 0:02:57]}  h5 {[%clk 0:02:57]} 6. h4 {[%clk 0:02:55]}  e5 {[%clk 0:02:50]} 7. Bg5 {[%clk 0:02:48]}  exd4 {[%clk 0:02:39]} 8. Bc4 {[%clk 0:02:46]}  Bg4 {[%clk 0:02:25]} 9. f3 {[%clk 0:02:38]}  Be6 {[%clk 0:02:25]} 10. Bxe6 {[%clk 0:02:36]}  fxe6 {[%clk 0:02:26]} 11. Qd3 {[%clk 0:02:36]}  Qa5+ {[%clk 0:02:04]} 12. Kf2 {[%clk 0:02:31]}  Nbd7 {[%clk 0:01:46]} 13. Qg6+ {[%clk 0:02:28]}  Kd8 {[%clk 0:01:46]} 14. N1e2 {[%clk 0:02:22]}  Qb6 {[%clk 0:01:40]} 15. Nf4 {[%clk 0:01:42]}  d3+ {[%clk 0:01:38]} 16. Kf1 {[%clk 0:01:42]}  Qxb2 {[%clk 0:01:30]} 17. Nxe6+ {[%clk 0:01:38]}  Kc8 {[%clk 0:01:31]} 18. Re1 {[%clk 0:01:38]}  d2 {[%clk 0:00:52]} 19. Bxd2 {[%clk 0:01:34]}  b6 {[%clk 0:00:52]} 20. Qf7 {[%clk 0:01:27]}  Kb7 {[%clk 0:00:39]} 21. Bg5 {[%clk 0:01:26]}  Ka6 {[%clk 0:00:28]} 22. Nc7+ {[%clk 0:01:24]}  Kb7 {[%clk 0:00:26]} 23. Nxa8 {[%clk 0:01:22]}  Bb4 {[%clk 0:00:17]} 24. Bxf6 {[%clk 0:01:20]}  gxf6 {[%clk 0:00:16]} 25. Qxd7+ {[%clk 0:01:19]}  Kxa8 {[%clk 0:00:17]} 26. Qxc6+ {[%clk 0:01:16]}  Kb8 {[%clk 0:00:17]} 27. Re8+ {[%clk 0:01:16]}  Rxe8 {[%clk 0:00:17]} 28. Qxe8+ {[%clk 0:01:17]}  Kb7 {[%clk 0:00:17]} 29. Qe4+ {[%clk 0:01:16]}  Ka6 {[%clk 0:00:17]} 30. Ke2 {[%clk 0:01:16]}  Qxa2 {[%clk 0:00:16]} 31. Nf5 {[%clk 0:01:14]}  Ba5 {[%clk 0:00:11]} 32. Nd6 {[%clk 0:01:13]} 1-0

[Event "November 21 Early 2023"]
[Site "https://www.chess.com"]
[Date "2023.11.21"]
[Round "4"]
[White "Cherniaiev, Tykhon"]
[Black "Bodnaruk, Anastasia"]
[Result "1-0"]
[Board "33"]
[TimeControl "180+1"]
[WhiteFideId "14182360"]
[BlackFideId "4181751"]
[WhiteElo "2438"]
[BlackElo "2260"]
[WhiteTeam "UKR"]
[BlackTeam "RUS"]
[WhiteClock "0:00:16"]
[BlackClock "0:00:11"]

1. Nf3 {[%clk 0:03:00]}  Nf6 {[%clk 0:02:59]} 2. d4 {[%clk 0:03:01]}  g6 {[%clk 0:03:00]} 3. c4 {[%clk 0:03:02]}  Bg7 {[%clk 0:03:00]} 4. g3 {[%clk 0:03:02]}  O-O {[%clk 0:03:01]} 5. Bg2 {[%clk 0:03:03]}  d6 {[%clk 0:03:01]} 6. O-O {[%clk 0:03:04]}  Nc6 {[%clk 0:03:02]} 7. Nc3 {[%clk 0:03:04]}  a6 {[%clk 0:03:02]} 8. b3 {[%clk 0:03:05]}  Rb8 {[%clk 0:03:01]} 9. Bb2 {[%clk 0:03:06]}  b5 {[%clk 0:03:01]} 10. cxb5 {[%clk 0:03:06]}  axb5 {[%clk 0:03:01]} 11. Rc1 {[%clk 0:03:07]}  b4 {[%clk 0:03:01]} 12. Na4 {[%clk 0:03:07]}  Na5 {[%clk 0:02:59]} 13. d5 {[%clk 0:03:00]}  e6 {[%clk 0:02:55]} 14. dxe6 {[%clk 0:02:54]}  fxe6 {[%clk 0:02:54]} 15. Qc2 {[%clk 0:02:30]}  c5 {[%clk 0:02:53]} 16. Rfd1 {[%clk 0:02:29]}  Qe7 {[%clk 0:02:52]} 17. Qd3 {[%clk 0:02:29]}  Nb7 {[%clk 0:02:32]} 18. Ng5 {[%clk 0:01:43]}  Kh8 {[%clk 0:02:16]} 19. Bxb7 {[%clk 0:01:39]}  Rxb7 {[%clk 0:01:30]} 20. Qxd6 {[%clk 0:01:38]}  Nd5 {[%clk 0:01:14]} 21. Bxg7+ {[%clk 0:01:29]}  Kxg7 {[%clk 0:01:12]} 22. Qxe7+ {[%clk 0:01:16]}  Rxe7 {[%clk 0:01:12]} 23. Ne4 {[%clk 0:01:05]}  Ra7 {[%clk 0:01:06]} 24. Nexc5 {[%clk 0:01:02]}  Kf6 {[%clk 0:00:50]} 25. e4 {[%clk 0:00:58]}  Nc3 {[%clk 0:00:47]} 26. Nxc3 {[%clk 0:00:57]}  bxc3 {[%clk 0:00:48]} 27. Rxc3 {[%clk 0:00:58]}  Ke7 {[%clk 0:00:45]} 28. a4 {[%clk 0:00:57]}  e5 {[%clk 0:00:42]} 29. Kg2 {[%clk 0:00:53]}  Rc7 {[%clk 0:00:37]} 30. Rd5 {[%clk 0:00:52]}  Bb7 {[%clk 0:00:28]} 31. Rxe5+ {[%clk 0:00:36]}  Kf6 {[%clk 0:00:28]} 32. Re6+ {[%clk 0:00:34]}  Kg7 {[%clk 0:00:27]} 33. Rc4 {[%clk 0:00:31]}  Kf7 {[%clk 0:00:21]} 34. Rb6 {[%clk 0:00:26]}  Ba8 {[%clk 0:00:20]} 35. Rbb4 {[%clk 0:00:19]}  Rd8 {[%clk 0:00:20]} 36. Na6 {[%clk 0:00:18]}  Rxc4 {[%clk 0:00:18]} 37. Rxc4 {[%clk 0:00:19]}  Rd2 {[%clk 0:00:18]} 38. Nc5 {[%clk 0:00:17]}  Kf6 {[%clk 0:00:16]} 39. a5 {[%clk 0:00:16]}  Ke5 {[%clk 0:00:16]} 40. a6 {[%clk 0:00:16]}  g5 {[%clk 0:00:15]} 41. h3 {[%clk 0:00:15]}  h5 {[%clk 0:00:14]} 42. b4 {[%clk 0:00:15]}  g4 {[%clk 0:00:15]} 43. hxg4 {[%clk 0:00:15]}  hxg4 {[%clk 0:00:15]} 44. b5 {[%clk 0:00:16]}  Rd4 {[%clk 0:00:14]} 45. Rxd4 {[%clk 0:00:15]}  Kxd4 {[%clk 0:00:11]} 46. b6 {[%clk 0:00:16]} 1-0

[Event "November 21 Early 2023"]
[Site "https://www.chess.com"]
[Date "2023.11.21"]
[Round "4"]
[White "Vakhlamov, Igor L."]
[Black "FREDERICKtheMATE"]
[Result "1-0"]
[Board "34"]
[TimeControl "180+1"]
[WhiteFideId "24126748"]
[WhiteElo "2407"]
[BlackElo "2569"]
[WhiteTeam "RUS"]
[WhiteClock "0:02:04"]
[BlackClock "0:02:16"]

1. e4 {[%clk 0:02:39]}  c5 {[%clk 0:02:59]} 2. Nf3 {[%clk 0:02:38]}  Nc6 {[%clk 0:03:00]} 3. Nc3 {[%clk 0:02:39]}  g6 {[%clk 0:02:59]} 4. d4 {[%clk 0:02:39]}  cxd4 {[%clk 0:02:58]} 5. Nxd4 {[%clk 0:02:40]}  Bg7 {[%clk 0:02:58]} 6. Nxc6 {[%clk 0:02:40]}  bxc6 {[%clk 0:02:58]} 7. Bc4 {[%clk 0:02:41]}  e6 {[%clk 0:02:49]} 8. O-O {[%clk 0:02:39]}  d5 {[%clk 0:02:48]} 9. exd5 {[%clk 0:02:40]}  cxd5 {[%clk 0:02:48]} 10. Nxd5 {[%clk 0:02:40]}  exd5 {[%clk 0:02:47]} 11. Bxd5 {[%clk 0:02:41]}  Rb8 {[%clk 0:02:43]} 12. Bxf7+ {[%clk 0:02:39]}  Ke7 {[%clk 0:02:34]} 13. Re1+ {[%clk 0:02:30]}  Be6 {[%clk 0:02:32]} 14. Qxd8+ {[%clk 0:02:13]}  Kxd8 {[%clk 0:02:26]} 15. Bxe6 {[%clk 0:02:14]}  Bxb2 {[%clk 0:02:24]} 16. Bg5+ {[%clk 0:02:05]}  Bf6 {[%clk 0:02:21]} 17. Rad1+ {[%clk 0:02:04]}  Kc7 {[%clk 0:02:16]} 18. Bf4+ {[%clk 0:02:04]} 1-0

[Event "November 21 Early 2023"]
[Site "https://www.chess.com"]
[Date "2023.11.21"]
[Round "4"]
[White "robertoalejandro10"]
[Black "Lobanov, Sergei"]
[Result "0-1"]
[Board "35"]
[TimeControl "180+1"]
[BlackFideId "24183750"]
[WhiteElo "2491"]
[BlackElo "2483"]
[BlackTeam "FID"]
[WhiteClock "0:00:00"]
[BlackClock "0:01:00"]

1. Nf3 {[%clk 0:03:00]}  d5 {[%clk 0:02:58]} 2. b3 {[%clk 0:02:59]}  Bf5 {[%clk 0:02:57]} 3. Bb2 {[%clk 0:02:59]}  h6 {[%clk 0:02:57]} 4. g3 {[%clk 0:02:57]}  e6 {[%clk 0:02:57]} 5. Bg2 {[%clk 0:02:57]}  Nd7 {[%clk 0:02:58]} 6. c4 {[%clk 0:02:57]}  Ngf6 {[%clk 0:02:57]} 7. O-O {[%clk 0:02:57]}  Be7 {[%clk 0:02:55]} 8. d3 {[%clk 0:02:57]}  O-O {[%clk 0:02:55]} 9. Nbd2 {[%clk 0:02:57]}  Bh7 {[%clk 0:02:55]} 10. a3 {[%clk 0:02:56]}  a5 {[%clk 0:02:55]} 11. Ra2 {[%clk 0:02:56]}  c5 {[%clk 0:02:52]} 12. cxd5 {[%clk 0:02:55]}  exd5 {[%clk 0:02:52]} 13. d4 {[%clk 0:02:55]}  b6 {[%clk 0:02:49]} 14. dxc5 {[%clk 0:02:52]}  bxc5 {[%clk 0:02:49]} 15. Qa1 {[%clk 0:02:52]}  a4 {[%clk 0:02:48]} 16. bxa4 {[%clk 0:02:48]}  Rxa4 {[%clk 0:02:47]} 17. Ne5 {[%clk 0:02:49]}  Nxe5 {[%clk 0:02:41]} 18. Bxe5 {[%clk 0:02:50]}  d4 {[%clk 0:02:39]} 19. Qd1 {[%clk 0:02:21]}  Qd7 {[%clk 0:02:09]} 20. Qb3 {[%clk 0:01:49]}  Ng4 {[%clk 0:02:03]} 21. Nf3 {[%clk 0:01:27]}  Bf5 {[%clk 0:01:55]} 22. Qb6 {[%clk 0:01:21]}  Be4 {[%clk 0:01:35]} 23. Bf4 {[%clk 0:01:17]}  Qd5 {[%clk 0:01:23]} 24. Raa1 {[%clk 0:01:06]}  Rfa8 {[%clk 0:01:22]} 25. h3 {[%clk 0:01:04]}  Nf6 {[%clk 0:01:22]} 26. Qc7 {[%clk 0:00:46]}  Bf8 {[%clk 0:01:17]} 27. Rfc1 {[%clk 0:00:33]}  d3 {[%clk 0:01:13]} 28. Rd1 {[%clk 0:00:22]}  c4 {[%clk 0:01:13]} 29. Ne1 {[%clk 0:00:19]}  Bxg2 {[%clk 0:01:09]} 30. Nxg2 {[%clk 0:00:20]}  Rxa3 {[%clk 0:01:08]} 31. Rxa3 {[%clk 0:00:20]}  Rxa3 {[%clk 0:01:08]} 32. exd3 {[%clk 0:00:21]}  Rxd3 {[%clk 0:01:06]} 33. Rf1 {[%clk 0:00:20]}  c3 {[%clk 0:01:02]} 34. Ne3 {[%clk 0:00:21]}  Qf3 {[%clk 0:01:02]} 35. Qc4 {[%clk 0:00:20]}  Qe2 {[%clk 0:01:02]} 36. Be5 {[%clk 0:00:08]}  Rxe3 {[%clk 0:01:01]} 37. Qf4 {[%clk 0:00:00]}  Rxe5 {[%clk 0:01:00]} 0-1

[Event "November 21 Early 2023"]
[Site "https://www.chess.com"]
[Date "2023.11.21"]
[Round "4"]
[White "Erigaisi Arjun"]
[Black "Nitin, S."]
[Result "1-0"]
[Board "38"]
[TimeControl "180+1"]
[WhiteFideId "35009192"]
[BlackFideId "5018277"]
[WhiteElo "2729"]
[BlackElo "2359"]
[WhiteTeam "IND"]
[BlackTeam "IND"]
[WhiteClock "0:01:46"]
[BlackClock "0:00:01"]

1. b3 {[%clk 0:03:00]}  e5 {[%clk 0:02:59]} 2. Bb2 {[%clk 0:03:00]}  d6 {[%clk 0:02:59]} 3. g3 {[%clk 0:03:00]}  h5 {[%clk 0:02:58]} 4. Nf3 {[%clk 0:02:59]}  e4 {[%clk 0:02:56]} 5. Nh4 {[%clk 0:02:59]}  Nd7 {[%clk 0:02:41]} 6. d3 {[%clk 0:02:55]}  Ngf6 {[%clk 0:02:11]} 7. Nd2 {[%clk 0:02:52]}  d5 {[%clk 0:02:05]} 8. e3 {[%clk 0:02:49]}  Bd6 {[%clk 0:01:55]} 9. Nf5 {[%clk 0:02:46]}  Be5 {[%clk 0:01:50]} 10. d4 {[%clk 0:02:46]}  Bd6 {[%clk 0:01:41]} 11. Nxg7+ {[%clk 0:02:47]}  Kf8 {[%clk 0:01:41]} 12. Nf5 {[%clk 0:02:47]}  Nb6 {[%clk 0:01:15]} 13. Nxd6 {[%clk 0:02:47]}  cxd6 {[%clk 0:01:14]} 14. h3 {[%clk 0:02:46]}  Bf5 {[%clk 0:01:12]} 15. c4 {[%clk 0:02:44]}  dxc4 {[%clk 0:01:06]} 16. bxc4 {[%clk 0:02:41]}  d5 {[%clk 0:01:06]} 17. c5 {[%clk 0:02:41]}  Nc8 {[%clk 0:01:04]} 18. Qb3 {[%clk 0:02:39]}  Rb8 {[%clk 0:00:59]} 19. a4 {[%clk 0:02:35]}  Ne7 {[%clk 0:00:58]} 20. a5 {[%clk 0:02:35]}  Nc6 {[%clk 0:00:55]} 21. Bc3 {[%clk 0:02:34]}  Qd7 {[%clk 0:00:55]} 22. Qa4 {[%clk 0:02:34]}  Kg7 {[%clk 0:00:55]} 23. Rb1 {[%clk 0:02:32]}  a6 {[%clk 0:00:55]} 24. Rb6 {[%clk 0:02:31]}  Rhc8 {[%clk 0:00:52]} 25. Kd1 {[%clk 0:02:29]}  Qe8 {[%clk 0:00:50]} 26. Kc1 {[%clk 0:02:26]}  Nd7 {[%clk 0:00:49]} 27. Rb2 {[%clk 0:02:23]}  Nf6 {[%clk 0:00:49]} 28. Kb1 {[%clk 0:02:22]}  Bd7 {[%clk 0:00:49]} 29. Qa3 {[%clk 0:02:20]}  Na7 {[%clk 0:00:48]} 30. Rb6 {[%clk 0:02:20]}  Bc6 {[%clk 0:00:47]} 31. g4 {[%clk 0:02:16]}  h4 {[%clk 0:00:45]} 32. Ka1 {[%clk 0:02:13]}  Nd7 {[%clk 0:00:45]} 33. Rb1 {[%clk 0:02:13]}  Nb5 {[%clk 0:00:42]} 34. Qc1 {[%clk 0:02:13]}  Qd8 {[%clk 0:00:41]} 35. Bb4 {[%clk 0:02:13]}  Nf8 {[%clk 0:00:38]} 36. f4 {[%clk 0:02:09]}  Bd7 {[%clk 0:00:28]} 37. Qe1 {[%clk 0:02:04]}  Na7 {[%clk 0:00:23]} 38. Bc3 {[%clk 0:02:02]}  Nc6 {[%clk 0:00:23]} 39. Rb6 {[%clk 0:02:01]}  Be8 {[%clk 0:00:21]} 40. g5 {[%clk 0:01:57]}  Nd7 {[%clk 0:00:19]} 41. Qxh4 {[%clk 0:01:56]}  Nxb6 {[%clk 0:00:19]} 42. axb6 {[%clk 0:01:57]}  Qd7 {[%clk 0:00:18]} 43. Be2 {[%clk 0:01:56]}  Ne7 {[%clk 0:00:18]} 44. Nxe4 {[%clk 0:01:49]}  Qa4+ {[%clk 0:00:14]} 45. Kb2 {[%clk 0:01:48]}  Ng8 {[%clk 0:00:01]} 46. Nf6 {[%clk 0:01:46]} 1-0

[Event "November 21 Early 2023"]
[Site "https://www.chess.com"]
[Date "2023.11.21"]
[Round "4"]
[White "Souleidis, Georgios"]
[Black "Maghsoodloo, Parham"]
[Result "0-1"]
[Board "41"]
[TimeControl "180+1"]
[WhiteFideId "4206827"]
[BlackFideId "12539929"]
[WhiteElo "2401"]
[BlackElo "2660"]
[WhiteTeam "GRE"]
[BlackTeam "IRI"]
[WhiteClock "0:00:03"]
[BlackClock "0:01:41"]

1. e4 {[%clk 0:03:00]}  c5 {[%clk 0:02:57]} 2. Nf3 {[%clk 0:03:00]}  d6 {[%clk 0:02:57]} 3. Bc4 {[%clk 0:03:00]}  a6 {[%clk 0:02:57]} 4. O-O {[%clk 0:02:59]}  b5 {[%clk 0:02:56]} 5. Bd5 {[%clk 0:02:42]}  Ra7 {[%clk 0:02:53]} 6. a4 {[%clk 0:02:42]}  e6 {[%clk 0:02:51]} 7. Ba2 {[%clk 0:02:40]}  Nf6 {[%clk 0:02:49]} 8. Re1 {[%clk 0:02:39]}  Be7 {[%clk 0:02:49]} 9. d4 {[%clk 0:02:26]}  cxd4 {[%clk 0:02:48]} 10. Nxd4 {[%clk 0:02:26]}  bxa4 {[%clk 0:02:44]} 11. Nc3 {[%clk 0:02:23]}  Bd7 {[%clk 0:02:43]} 12. Bc4 {[%clk 0:02:15]}  Rc7 {[%clk 0:02:39]} 13. Qe2 {[%clk 0:01:56]}  Qc8 {[%clk 0:02:28]} 14. Bd3 {[%clk 0:01:52]}  Rb7 {[%clk 0:02:09]} 15. Nxa4 {[%clk 0:01:37]}  Rb4 {[%clk 0:02:06]} 16. b3 {[%clk 0:00:28]}  Rxd4 {[%clk 0:02:02]} 17. c3 {[%clk 0:00:26]}  Rxa4 {[%clk 0:01:54]} 18. bxa4 {[%clk 0:00:25]}  O-O {[%clk 0:01:54]} 19. Ba3 {[%clk 0:00:21]}  e5 {[%clk 0:01:51]} 20. Rec1 {[%clk 0:00:16]}  a5 {[%clk 0:01:47]} 21. Bb5 {[%clk 0:00:14]}  Be6 {[%clk 0:01:46]} 22. c4 {[%clk 0:00:14]}  Nc6 {[%clk 0:01:46]} 23. Bb2 {[%clk 0:00:09]}  Nd7 {[%clk 0:01:45]} 24. Rd1 {[%clk 0:00:09]}  Nc5 {[%clk 0:01:44]} 25. Qc2 {[%clk 0:00:08]}  Nb4 {[%clk 0:01:42]} 26. Qc3 {[%clk 0:00:07]}  Nxe4 {[%clk 0:01:42]} 27. Qe3 {[%clk 0:00:08]}  Nc5 {[%clk 0:01:42]} 28. Ba3 {[%clk 0:00:03]}  Nc2 {[%clk 0:01:41]} 0-1

[Event "November 21 Early 2023"]
[Site "https://www.chess.com"]
[Date "2023.11.21"]
[Round "4"]
[White "Spata, German"]
[Black "Paravyan, David"]
[Result "0-1"]
[Board "42"]
[TimeControl "180+1"]
[WhiteFideId "113026"]
[BlackFideId "4194985"]
[WhiteElo "2260"]
[BlackElo "2566"]
[WhiteTeam "ARG"]
[BlackTeam "FID"]
[WhiteClock "0:00:34"]
[BlackClock "0:01:50"]

1. e4 {[%clk 0:02:56]}  e5 {[%clk 0:03:00]} 2. Nc3 {[%clk 0:02:56]}  Nf6 {[%clk 0:03:00]} 3. d4 {[%clk 0:02:56]}  exd4 {[%clk 0:03:00]} 4. Qxd4 {[%clk 0:02:56]}  Nc6 {[%clk 0:03:01]} 5. Qd3 {[%clk 0:02:55]}  Bc5 {[%clk 0:03:01]} 6. Bf4 {[%clk 0:02:48]}  d6 {[%clk 0:03:01]} 7. Qd2 {[%clk 0:02:45]}  O-O {[%clk 0:02:59]} 8. O-O-O {[%clk 0:02:44]}  a5 {[%clk 0:03:00]} 9. f3 {[%clk 0:02:43]}  a4 {[%clk 0:03:00]} 10. a3 {[%clk 0:02:40]}  Be6 {[%clk 0:02:59]} 11. Bg5 {[%clk 0:02:37]}  h6 {[%clk 0:02:57]} 12. Bh4 {[%clk 0:02:37]}  Ne5 {[%clk 0:02:41]} 13. Nge2 {[%clk 0:02:20]}  Nc4 {[%clk 0:02:40]} 14. Qd3 {[%clk 0:02:21]}  Ne5 {[%clk 0:02:33]} 15. Qd2 {[%clk 0:02:20]}  Nxe4 {[%clk 0:02:32]} 16. Bxd8 {[%clk 0:02:09]}  Nxd2 {[%clk 0:02:32]} 17. Bxc7 {[%clk 0:02:04]}  Be3 {[%clk 0:02:28]} 18. Rxd2 {[%clk 0:01:46]}  Nc4 {[%clk 0:02:27]} 19. Ng3 {[%clk 0:01:34]}  Bxd2+ {[%clk 0:02:24]} 20. Kb1 {[%clk 0:01:30]}  Nxa3+ {[%clk 0:02:22]} 21. bxa3 {[%clk 0:01:27]}  Bxc3 {[%clk 0:02:22]} 22. Bxd6 {[%clk 0:01:18]}  Rfd8 {[%clk 0:02:21]} 23. Ne4 {[%clk 0:01:15]}  Bd4 {[%clk 0:02:18]} 24. Bb4 {[%clk 0:01:09]}  Rac8 {[%clk 0:02:06]} 25. Bd3 {[%clk 0:01:08]}  Rc6 {[%clk 0:01:59]} 26. Bb5 {[%clk 0:01:02]}  Rb6 {[%clk 0:01:53]} 27. Bxa4 {[%clk 0:01:02]}  Ra8 {[%clk 0:01:52]} 28. Bb3 {[%clk 0:00:34]}  Rxb4 {[%clk 0:01:50]} 0-1

[Event "November 21 Early 2023"]
[Site "https://www.chess.com"]
[Date "2023.11.21"]
[Round "4"]
[White "Aaditya Dhingra"]
[Black "Kovalenko, Igor"]
[Result "0-1"]
[Board "45"]
[TimeControl "180+1"]
[WhiteFideId "25678191"]
[BlackFideId "14117908"]
[WhiteElo "2269"]
[BlackElo "2574"]
[WhiteTeam "IND"]
[BlackTeam "UKR"]
[WhiteClock "0:00:07"]
[BlackClock "0:00:57"]

1. d4 {[%clk 0:03:00]}  Nf6 {[%clk 0:02:59]} 2. c4 {[%clk 0:02:58]}  e6 {[%clk 0:02:52]} 3. Nf3 {[%clk 0:02:58]}  Bb4+ {[%clk 0:02:51]} 4. Bd2 {[%clk 0:02:55]}  a5 {[%clk 0:02:52]} 5. Qc2 {[%clk 0:02:52]}  O-O {[%clk 0:02:49]} 6. Nc3 {[%clk 0:02:49]}  d5 {[%clk 0:02:47]} 7. e3 {[%clk 0:02:48]}  Nbd7 {[%clk 0:02:40]} 8. Bd3 {[%clk 0:02:46]}  b6 {[%clk 0:02:40]} 9. O-O {[%clk 0:02:45]}  Bb7 {[%clk 0:02:40]} 10. cxd5 {[%clk 0:02:45]}  exd5 {[%clk 0:02:40]} 11. Ne5 {[%clk 0:02:38]}  Re8 {[%clk 0:02:37]} 12. a3 {[%clk 0:02:18]}  Bd6 {[%clk 0:02:32]} 13. f4 {[%clk 0:02:18]}  c5 {[%clk 0:02:32]} 14. Bf5 {[%clk 0:02:07]}  Nf8 {[%clk 0:02:31]} 15. Be1 {[%clk 0:02:00]}  g6 {[%clk 0:02:17]} 16. Bd3 {[%clk 0:01:46]}  N6d7 {[%clk 0:02:07]} 17. Bb5 {[%clk 0:01:37]}  Rc8 {[%clk 0:02:03]} 18. Qa4 {[%clk 0:01:35]}  Re7 {[%clk 0:01:58]} 19. Bh4 {[%clk 0:01:33]}  f6 {[%clk 0:01:58]} 20. Nxd7 {[%clk 0:01:18]}  Nxd7 {[%clk 0:01:57]} 21. Bxd7 {[%clk 0:01:17]}  Qxd7 {[%clk 0:01:57]} 22. Qxd7 {[%clk 0:01:14]}  Rxd7 {[%clk 0:01:58]} 23. Bxf6 {[%clk 0:01:13]}  Bf8 {[%clk 0:01:56]} 24. f5 {[%clk 0:01:08]}  Ba6 {[%clk 0:01:54]} 25. Rf2 {[%clk 0:01:04]}  Bd3 {[%clk 0:01:54]} 26. fxg6 {[%clk 0:01:02]}  hxg6 {[%clk 0:01:54]} 27. Be5 {[%clk 0:01:00]}  Bh6 {[%clk 0:01:52]} 28. Rd1 {[%clk 0:00:52]}  c4 {[%clk 0:01:51]} 29. Bf4 {[%clk 0:00:51]}  Bg7 {[%clk 0:01:35]} 30. Rf3 {[%clk 0:00:46]}  Re8 {[%clk 0:01:33]} 31. h4 {[%clk 0:00:43]}  Re6 {[%clk 0:01:33]} 32. g4 {[%clk 0:00:42]}  Kh7 {[%clk 0:01:32]} 33. Kf2 {[%clk 0:00:41]}  Bf6 {[%clk 0:01:17]} 34. Bg5 {[%clk 0:00:32]}  Bxg5 {[%clk 0:01:13]} 35. hxg5 {[%clk 0:00:33]}  Kg7 {[%clk 0:01:14]} 36. Rh1 {[%clk 0:00:31]}  Be4 {[%clk 0:01:12]} 37. Nxe4 {[%clk 0:00:31]}  Rxe4 {[%clk 0:01:13]} 38. Rfh3 {[%clk 0:00:24]}  Rf7+ {[%clk 0:01:13]} 39. Rf3 {[%clk 0:00:14]}  Rxg4 {[%clk 0:01:11]} 40. Rh7+ {[%clk 0:00:13]}  Kxh7 {[%clk 0:01:11]} 41. Rxf7+ {[%clk 0:00:14]}  Kg8 {[%clk 0:01:11]} 42. Rf6 {[%clk 0:00:14]}  Rxg5 {[%clk 0:01:11]} 43. Rxb6 {[%clk 0:00:15]}  Kf7 {[%clk 0:01:11]} 44. Rb5 {[%clk 0:00:15]}  Rf5+ {[%clk 0:01:05]} 45. Kg3 {[%clk 0:00:13]}  a4 {[%clk 0:01:04]} 46. Rb4 {[%clk 0:00:12]}  Rf1 {[%clk 0:01:01]} 47. Rxa4 {[%clk 0:00:12]}  Ke6 {[%clk 0:01:02]} 48. Ra5 {[%clk 0:00:10]}  Rb1 {[%clk 0:00:57]} 49. Rb5 {[%clk 0:00:10]}  c3 {[%clk 0:00:57]} 50. Kf2 {[%clk 0:00:09]}  c2 {[%clk 0:00:57]} 51. Rxd5 {[%clk 0:00:07]}  Kxd5 {[%clk 0:00:57]} 0-1

[Event "November 21 Early 2023"]
[Site "https://www.chess.com"]
[Date "2023.11.21"]
[Round "4"]
[White "Makarian, Rudik"]
[Black "Papasimakopoulos, Alexandros"]
[Result "1-0"]
[Board "47"]
[TimeControl "180+1"]
[WhiteFideId "44105681"]
[BlackFideId "4244125"]
[WhiteElo "2539"]
[BlackElo "2346"]
[WhiteTeam "FID"]
[BlackTeam "GRE"]
[WhiteClock "0:00:01"]
[BlackClock "0:00:00"]

1. e4 {[%clk 0:03:00]}  e6 {[%clk 0:03:00]} 2. d3 {[%clk 0:02:59]}  d5 {[%clk 0:03:00]} 3. Nd2 {[%clk 0:03:00]}  c5 {[%clk 0:03:01]} 4. Ngf3 {[%clk 0:03:00]}  Nc6 {[%clk 0:03:02]} 5. g3 {[%clk 0:03:01]}  Nge7 {[%clk 0:03:02]} 6. Bg2 {[%clk 0:03:01]}  g6 {[%clk 0:03:02]} 7. O-O {[%clk 0:03:02]}  Bg7 {[%clk 0:03:03]} 8. c3 {[%clk 0:02:59]}  h6 {[%clk 0:03:02]} 9. Re1 {[%clk 0:02:56]}  O-O {[%clk 0:03:01]} 10. Qe2 {[%clk 0:02:55]}  Kh7 {[%clk 0:02:57]} 11. e5 {[%clk 0:02:54]}  b5 {[%clk 0:02:57]} 12. h4 {[%clk 0:02:52]}  b4 {[%clk 0:02:56]} 13. Nb3 {[%clk 0:02:51]}  bxc3 {[%clk 0:02:50]} 14. bxc3 {[%clk 0:02:51]}  c4 {[%clk 0:02:50]} 15. Nbd4 {[%clk 0:02:46]}  Ba6 {[%clk 0:02:46]} 16. dxc4 {[%clk 0:02:44]}  Bxc4 {[%clk 0:02:42]} 17. Qc2 {[%clk 0:02:43]}  Nxd4 {[%clk 0:02:31]} 18. Nxd4 {[%clk 0:02:44]}  h5 {[%clk 0:02:21]} 19. Ba3 {[%clk 0:02:34]}  Qd7 {[%clk 0:02:15]} 20. Rab1 {[%clk 0:02:30]}  Rfc8 {[%clk 0:02:14]} 21. Qd1 {[%clk 0:02:13]}  Nc6 {[%clk 0:02:10]} 22. Bd6 {[%clk 0:02:10]}  Nxd4 {[%clk 0:02:06]} 23. cxd4 {[%clk 0:02:10]}  Bxa2 {[%clk 0:02:06]} 24. Rb2 {[%clk 0:02:09]}  Bc4 {[%clk 0:02:05]} 25. g4 {[%clk 0:02:09]}  hxg4 {[%clk 0:02:03]} 26. Qxg4 {[%clk 0:02:10]}  Bf8 {[%clk 0:01:53]} 27. h5 {[%clk 0:01:56]}  gxh5 {[%clk 0:01:19]} 28. Qxh5+ {[%clk 0:01:52]}  Bh6 {[%clk 0:01:19]} 29. Reb1 {[%clk 0:01:20]}  Ba6 {[%clk 0:01:18]} 30. Ra1 {[%clk 0:01:05]}  Rc6 {[%clk 0:01:06]} 31. Rb3 {[%clk 0:00:55]}  Rg8 {[%clk 0:01:06]} 32. Rf3 {[%clk 0:00:51]}  Rg6 {[%clk 0:01:02]} 33. Rg3 {[%clk 0:00:40]}  Rxg3 {[%clk 0:00:30]} 34. fxg3 {[%clk 0:00:41]}  Kg7 {[%clk 0:00:21]} 35. Qg4+ {[%clk 0:00:39]}  Kh7 {[%clk 0:00:20]} 36. Qh4 {[%clk 0:00:37]}  Kg7 {[%clk 0:00:15]} 37. Bf1 {[%clk 0:00:27]}  Bxf1 {[%clk 0:00:14]} 38. Rxf1 {[%clk 0:00:28]}  Rxd6 {[%clk 0:00:12]} 39. Qf6+ {[%clk 0:00:25]}  Kg8 {[%clk 0:00:09]} 40. Qxh6 {[%clk 0:00:19]}  Rb6 {[%clk 0:00:08]} 41. Rf4 {[%clk 0:00:19]}  f5 {[%clk 0:00:04]} 42. exf6 {[%clk 0:00:12]}  e5 {[%clk 0:00:03]} 43. Qg5+ {[%clk 0:00:04]}  Kf8 {[%clk 0:00:02]} 44. Qxe5 {[%clk 0:00:02]}  Qe8 {[%clk 0:00:00]} 45. Qxd5 {[%clk 0:00:01]} 1-0